Cogmind - Beta 15 @@@ ROGUE MODE // 2025.08.10 @ 18:16:08 Player: Zoe Result: Destroyed by G-34 Mercenary with Small Laser Performance ------------- Evolutions (0) 0 Regions Visited (4) 800 Robots Destroyed (26) 130 Value Destroyed (602) 602 Prototype IDs (25) 500 Alien Tech Used (0) 0 Bonus (300) 300 TOTAL SCORE: 2332 Bonus ------- Aligned with FarCom 300 Cogmind --------- Core Integrity 0/250 Matter 86/300 Energy 100/100 System Corruption 2% Temperature Cool (14) Movement Core (450) Ox8 Location -9/Mines Parts ------- > --- POWER (1) -------- (None) > --- PROPULSION (2) --- (None) > --- UTILITY (2) ------ Large Storage Unit Signal Interpreter > --- WEAPON (2) ------- Shotgun Shotgun > --- INVENTORY (15) --- Ion Engine Improved Heat Sink Large Storage Unit Sensor Array Signal Interpreter Improved Terrain Scanner Seismic Detector Trap Reconfigurator Beam Cannon Beam Cannon Grenade Launcher Grenade Launcher Mining Laser Peak State ------------ > --- POWER ------------ Ion Engine > --- PROPULSION ------- Light Treads Light Treads > --- UTILITY ---------- Large Storage Unit Signal Interpreter > --- WEAPON ----------- Shotgun Shotgun > --- INVENTORY -------- Light Treads Improved Heat Sink Large Storage Unit Sensor Array Signal Interpreter Improved Terrain Scanner Seismic Detector Beam Cannon Beam Cannon Shotgun Shotgun Grenade Launcher Grenade Launcher Mining Laser [Rating: 11] Favorites ----------- Power Ion Engine Engine Ion Engine Propulsion Light Treads Treads Light Treads Utility Large Storage Unit Device Seismic Detector Storage Large Storage Unit Processor Signal Interpreter Weapon Shotgun Energy Gun EM Pulse Gun Energy Cannon Beam Cannon Ballistic Gun Shotgun Launcher Grenade Launcher Special Weapon Mining Laser Build | -11 -10 -10 -10 -9 ------- Run | Yrd Mat Min Exi Min Slots Evolved . | . . . . . Power . | . . . . . Propulsion . | . . . . . Utility . | . . . . . Weapon . | . . . . . Parts Attached 22 | 7 8 5 . 2 Power 3 | 1 1 1 . . Engine 3 | 1 1 1 . . Core . | . . . . . Reactor . | . . . . . Propulsion 3 | 2 1 . . . Treads 3 | 2 1 . . . Leg . | . . . . . Wheel . | . . . . . Hover . | . . . . . Flight . | . . . . . Utility 4 | 2 2 . . . Device 1 | 1 . . . . Storage 2 | 1 1 . . . Processor 1 | . 1 . . . Hackware . | . . . . . Protection . | . . . . . Artifact . | . . . . . Weapon 12 | 2 4 4 . 2 Energy Gun 2 | 1 1 . . . Energy Cannon 2 | . 2 . . . Ballistic Gun 5 | 1 . 2 . 2 Ballistic Cannon . | . . . . . Launcher 2 | . . 2 . . Special Weapon 1 | . 1 . . . Impact Weapon . | . . . . . Slashing Weapon . | . . . . . Piercing Weapon . | . . . . . Special Melee Weapon . | . . . . . Unidentified Prototypes . | . . . . . Parts Lost 4 | . 1 . . 3 Power 1 | . . . . 1 Propulsion 2 | . . . . 2 Utility . | . . . . . Weapon 1 | . 1 . . . Highest Loss Streak 3 | . 1 . . 3 To Critical Strikes . | . . . . . Average Backups 11 | 5 9 14 14 13 Power . | . . . 1 1 Propulsion . | 1 1 1 . . Utility 5 | . 4 5 6 7 Weapon 4 | 2 2 7 7 5 Tool/Special . | . . . . . Unused Backups 10 | . 4 . . 6 Power . | . . . . . Propulsion 2 | . 2 . . . Utility 7 | . 1 . . 6 Weapon 1 | . 1 . . . Tool/Special . | . . . . . Average Slot Usage (%) 93 | . 99 100 71 98 Engine 14 | . 14 14 14 14 Treads 27 | . 28 28 28 26 Device 3 | . 7 . . . Storage 14 | . 14 14 14 14 Processor 10 | . 6 14 14 14 Energy Gun 3 | . 9 . . . Energy Cannon 4 | . 7 . . 4 Ballistic Gun 10 | . 10 13 . 19 Launcher 1 | . . 14 . . Special Weapon 1 | . 1 . . 3 Peak Build Rating 11 | 7 9 11 9 11 Average Rating 8 | 4 7 9 7 10 On Entrance 6 | . 7 8 9 7 Naked Turns . | . . . . . Heaviest Build 31 | 15 31 31 23 29 Greatest Support 40 | 40 40 40 40 40 Greatest Overweight (x) 1 | . . . . 1 Average Overweight (x) . | . . . . . Largest Inventory Capacity 15 | 8 15 15 15 15 Average Capacity 14 | 7 14 15 15 15 Most Carried 15 | 8 13 15 15 14 Average Carried 11 | 5 9 14 14 13 Final Capacity 15 | 8 15 15 15 15 Final Carried 15 | 6 13 15 15 13 Class Distribution -------------------- 100% | Mutant Dominant Class ---------------- Mutant | -10/Materials Mutant | -10/Mines Mutant | -10/Exiles Mutant | -9/Mines Resources | -11 -10 -10 -10 -9 ----------- Run | Yrd Mat Min Exi Min Matter Collected 663 | 300 200 163 . . Remotely . | . . . . . Salvage Created 849 | 128 490 116 . 115 Parts 57 | 12 24 9 . 12 Haulers Intercepted 2 | . 2 . . . Recyclers Shooed 1 | . . . . 1 Parts Field Recycled . | . . . . . Retrieved Matter . | . . . . . Parts Self-Destructed . | . . . . . Prevented . | . . . . . Kills | -11 -10 -10 -10 -9 ------- Run | Yrd Mat Min Exi Min Combat Hostiles Destroyed 20 | . 9 5 . 6 Guns 17 | . 6 5 . 6 Cannons 3 | . 3 . . . Classes Destroyed 5 | 2 2 1 . . Tunneler 3 | 3 . . . . Hauler 2 | . 2 . . . Recycler 1 | 1 . . . . Swarmer 7 | . . 3 . 4 Grunt 13 | . 9 2 . 2 Best Kill Streak 4 | 3 3 3 . 4 Combat Bots Only 4 | . 3 3 . 4 Max Kills in Single Turn 2 | 1 1 1 . 2 Gunslinging . | . . . . . Exploded . | . . . . . Melee . | . . . . . Uniques/NPCs Destroyed . | . . . . . Combat | -11 -10 -10 -10 -9 -------- Run | Yrd Mat Min Exi Min Hostile Shots Fired 113 | . 46 27 . 40 Missed 25 | . 8 10 . 7 Hits 88 | . 38 17 . 33 Projectile 88 | . 38 17 . 33 AOE 3 | . . 3 . . Critical Strikes 1 | . . 1 . . Damage Taken 1109 | . 484 269 . 356 Core 258 | . 128 69 . 61 Absorbed by Shields . | . . . . . Core Remaining (%) 100 | 100 . . . . Volleys Fired 90 | 10 38 13 . 29 Largest 2 | 1 2 2 . 2 Hottest 120 | 20 120 60 . 120 Shots Fired 154 | 10 71 26 . 47 Gun 108 | 10 48 22 . 28 Cannon 30 | . 20 . . 10 Launcher 4 | . . 4 . . Special 12 | . 3 . . 9 Kinetic 85 | 10 25 22 . 28 Thermal 50 | . 31 . . 19 Explosive 4 | . . 4 . . Electromagnetic 15 | . 15 . . . Robot Hit Streak 11 | 2 11 6 . 7 Robot Miss Streak 5 | 4 2 5 . 5 Penetration Max . | . . . . . Secondary Targets 4 | . 2 . . 2 Max Gunslinging Chain 1 | . 1 . . 1 Shots Hit Robots 86 | 4 42 19 . 21 Core Hits 49 | 4 19 17 . 9 Critical Kills . | . . . . . Critical Parts Destroyed 1 | . . 1 . . Critical Strikes 2 | . 1 1 . . Burn 1 | . 1 . . . Destroy 1 | . . 1 . . Melee Attacks . | . . . . . Impact . | . . . . . Slashing . | . . . . . Piercing . | . . . . . Sneak Attacks . | . . . . . Combat Hostiles . | . . . . . Follow-up Attacks . | . . . . . Damage Inflicted 1218 | 53 591 224 . 350 Guns 953 | 53 398 176 . 326 Cannons 193 | . 193 . . . Explosions 48 | . . 48 . . Melee . | . . . . . Ramming . | . . . . . Kinetic 745 | 53 190 176 . 326 Thermal 306 | . 282 . . 24 Explosive 48 | . . 48 . . Electromagnetic 119 | . 119 . . . Impact . | . . . . . Slashing . | . . . . . Piercing . | . . . . . Highest Corruption 2 | . 2 2 2 2 Average Corruption 2 | . 2 2 2 2 Corruption Purged . | . . . . . Corruption Blocked . | . . . . . Effects 24 | . 6 4 7 7 Message Errors 9 | . 1 1 5 2 Matter Fused 4 | . 2 1 1 . Heat Flow Errors 3 | . 1 . 1 1 Energy Discharges 1 | . 1 . . . Parts Fused 1 | . . 1 . . Data Loss (minor) 2 | . 1 . . 1 Data Loss (major) 2 | . . 1 . 1 Weapon Failures 2 | . . . . 2 Overload Shots . | . . . . . Overflow Damage . | . . . . . Projectiles . | . . . . . Explosions . | . . . . . Melee . | . . . . . Knockbacks . | . . . . . Impact . | . . . . . Kinetic . | . . . . . Secondary . | . . . . . Self-Inflicted Damage . | . . . . . Shots . | . . . . . Rammed . | . . . . . Targets Rammed . | . . . . . Kicked . | . . . . . Crushed . | . . . . . Highest Temperature 396 | . 396 22 80 387 Average Temperature 87 | . 91 9 43 87 Received Heat Transfer 492 | . 267 51 . 174 Siege Activations . | . . . . . Martial Activations . | . . . . . Shielding Activations . | . . . . . Robots Disrupted . | . . . . . Combat Hostiles . | . . . . . Robots Corrupted . | . . . . . Combat Hostiles . | . . . . . Parts Fried 1 | . 1 . . . Impact Corruptions . | . . . . . Robots Melted . | . . . . . Combat Hostiles . | . . . . . Parts Melted 3 | . 2 1 . . Heat Transferred 790 | . 740 . . 50 Parts Sabotaged . | . . . . . Parts Stolen . | . . . . . Parts Stripped . | . . . . . Power Chain Reactions . | . . . . . Alert | -11 -10 -10 -10 -9 ------- Run | Yrd Mat Min Exi Min Maximum Alert Level . | . . . . . Low Security (%) 100 | 100 100 100 . 100 Level 1 . | . . . . . Level 2 . | . . . . . Level 3 . | . . . . . Level 4 . | . . . . . Level 5 . | . . . . . High Security . | . . . . . Max Security . | . . . . . Peak Influence 114 | 10 109 114 . 94 Initial 34 | . . 34 . . Average 34 | 1 41 84 . 8 Influence Increases 649 | 20 357 141 . 131 Destroy 0b10 Robot/C 400 | . 180 100 . 120 Destroy 0b10 Robot/NC 30 | 20 10 . . . Destroy Leader 84 | . 54 20 . 10 Successful Hack 51 | . 51 . . . Disable Machine 30 | . 15 15 . . Destroy Structure 9 | . 2 6 . 1 Lose Combat Pursuer 45 | . 45 . . . Influence Decreases 565 | 20 267 166 65 47 Entered New Map 121 | . . 56 65 . Time Decay 404 | 20 257 110 . 17 Lost Part 40 | . 10 . . 30 Squads Dispatched 5 | . 5 . . . Investigation 5 | . 5 . . . Extermination . | . . . . . Reinforcement . | . . . . . Assault . | . . . . . Garrison . | . . . . . Intercept . | . . . . . Searches Triggered . | . . . . . Construction Impeded . | . . . . . Haulers Reinforced . | . . . . . Active Scanning Responses . | . . . . . Cargo Convoy Interrupts . | . . . . . Stealth | -11 -10 -10 -10 -9 --------- Run | Yrd Mat Min Exi Min Distress Signals 4 | . 4 . . . Communications Jammed . | . . . . . Distress Signals . | . . . . . Times Spotted 30 | . 15 7 . 8 Peak Tracking Total 6 | . 4 3 . 6 Tactical Retreats 2 | . 2 . . . Traps | -11 -10 -10 -10 -9 ------- Run | Yrd Mat Min Exi Min Traps Triggered 2 | . 2 . . . Indirectly . | . . . . . Trap Hack Attempts . | . . . . . Triggered . | . . . . . Disarmed . | . . . . . Reprogrammed . | . . . . . Reused . | . . . . . Traps Extracted . | . . . . . Installed . | . . . . . Triggered . | . . . . . Machines | -11 -10 -10 -10 -9 ---------- Run | Yrd Mat Min Exi Min Machines Disabled 2 | . 1 1 . . Max in Single Turn 1 | . 1 1 . . Machines Repaired . | . . . . . Machines Dismantled . | . . . . . Machines Sabotaged . | . . . . . Overloaded Fab Kills . | . . . . . Hacking | -11 -10 -10 -10 -9 --------- Run | Yrd Mat Min Exi Min Machines Accessed 5 | . 4 . 1 . Terminals 4 | . 4 . . . Fabricators . | . . . . . Repair Stations . | . . . . . Recycling Units . | . . . . . Scanalyzers . | . . . . . Garrison Access . | . . . . . Total Hacks 17 | . 16 . 1 . Successful 8 | . 7 . 1 . Failed 9 | . 9 . . . Catastrophic . | . . . . . Database Lockouts . | . . . . . Manual 8 | . 7 . 1 . Terminals 16 | . 16 . . . Fabricators . | . . . . . Repair Stations . | . . . . . Recycling Units . | . . . . . Scanalyzers . | . . . . . Garrison Access . | . . . . . Terminal Hacks 5 | . 4 . 1 . Prototype ID Bank 1 | . 1 . . . Terminal Index 1 | . 1 . . . Registered Components 1 | . 1 . . . Zone Layout 1 | . 1 . . . Proto ID Catalog 1 | . . . 1 . Fabricator Hacks . | . . . . . Repair Station Hacks . | . . . . . Recycling Unit Hacks . | . . . . . Scanalyzer . | . . . . . Garrison Access Hacks . | . . . . . Unauthorized Hacks 3 | . 3 . . . Terminals 3 | . 3 . . . Botnet 3 | . 3 . . . Fabricators . | . . . . . Repair Stations . | . . . . . Recycling Units . | . . . . . Scanalyzers . | . . . . . Garrison Access . | . . . . . Data Cores Recovered . | . . . . . Used . | . . . . . Hacking Detections 4 | . 4 . . . Full Trace Events 4 | . 4 . . . Feedback Events . | . . . . . Feedback Blocked . | . . . . . Robot Schematics Acquired . | . . . . . Robots Built . | . . . . . Authchips . | . . . . . Time . | . . . . . Total Robot Build Rating . | . . . . . Part Schematics Acquired . | . . . . . Parts Built . | . . . . . Authchips . | . . . . . Time . | . . . . . Total Part Build Rating . | . . . . . Parts Repaired . | . . . . . Time . | . . . . . Parts Recycled . | . . . . . Recycled Matter . | . . . . . Retrieved Matter . | . . . . . Retrieved Components . | . . . . . Parts Scanalyzed . | . . . . . Part Schematics Acquired . | . . . . . Parts Damaged . | . . . . . Bothacking | -11 -10 -10 -10 -9 ------------ Run | Yrd Mat Min Exi Min Used RIF Installer . | . . . . . Robots Hacked . | . . . . . Non-combat . | . . . . . Combat . | . . . . . Robot Hacks Applied . | . . . . . Relay Couplers Released . | . . . . . Fabnet Peak Effective % . | . . . . . Robots Rewired . | . . . . . Allies Hacked . | . . . . . Hacks Repelled . | . . . . . Allies | -11 -10 -10 -10 -9 -------- Run | Yrd Mat Min Exi Min Total Allies . | . . . . . Largest Group . | . . . . . Highest-Rated Group . | . . . . . Highest-Rated Ally . | . . . . . Total Orders . | . . . . . Ally Attacks . | . . . . . Total Damage . | . . . . . Kills . | . . . . . Allies Corrupted . | . . . . . Allies Melted . | . . . . . Intel | -11 -10 -10 -10 -9 ------- Run | Yrd Mat Min Exi Min Active Infowar (turns) 445 | 27 418 . . . Seismic 445 | 27 418 . . . Robot Analysis Total . | . . . . . Derelict Logs Recovered 1 | . . 1 . . Drone Launches . | . . . . . Drone Recoveries . | . . . . . Exploration | -11 -10 -10 -10 -9 ------------- Run | Yrd Mat Min Exi Min Turns Passed 2114 | 192 824 230 430 438 Spaces Moved 937 | 99 345 113 267 113 Core 5 | 5 . . . . Treads 932 | 94 345 113 267 113 Legs . | . . . . . Wheels . | . . . . . Hover . | . . . . . Flight . | . . . . . Fastest Speed 50 | 50 160 160 160 160 Average Speed 159 | 154 160 160 160 162 Slowest Speed 240 | 160 160 160 160 240 Overloaded Moves . | . . . . . Propulsion Burnouts . | . . . . . Robots Hopped . | . . . . . Potential Cave-ins . | . . . . . Cave-ins Triggered . | . . . . . Exploration Rate (%) 35 | 6 54 18 69 29 Regions Visited 4 Branch Regions 3 Pre-discovered Areas 1 | . . 1 . . Known Exits Taken 3 | . 1 1 1 . Unknown Exits Taken 1 | 1 . . . . Scrap Searched . | . . . . . Spaces Dug 2 | . 2 . . . Terrain Destroyed 17 | . 2 14 . 1 Melee . | . . . . . Projectile 3 | . 2 . . 1 AOE 14 | . . 14 . . Terrain Rammed . | . . . . . Walls Destroyed . | . . . . . Machines Disabled . | . . . . . Actions | -11 -10 -10 -10 -9 --------- Run | Yrd Mat Min Exi Min Total 1370 | 128 539 133 272 298 Wait 270 | . 121 . . 149 Move 933 | 98 344 112 266 113 Hop . | . . . . . Pick Up 32 | 13 16 2 1 . Fast Attach . | . . . . . Attach 10 | 7 1 . . 2 Detach 2 | . . . 2 . Swap 22 | . 11 6 . 5 Drop 11 | . 8 . 3 . Fire 90 | 10 38 13 . 29 Melee . | . . . . . Ram . | . . . . . Kick . | . . . . . Crush . | . . . . . Escape Stasis . | . . . . . Rewire . | . . . . . Trap . | . . . . . Miscellaneous . | . . . . . Route ------- -11/Scrapyard -10/Materials (discovered 3 exits: *Mat x2 / *Min) -10/Mines -10/Exiles -9/Mines History --------- Turn | Location | Event 18 | -11/Scrapyard | Discovered new exit (range 15) 193 | -11/Scrapyard | Entered Materials 301 | -10/Materials | Build established: Mutant 587 | -10/Materials | Discovered new exit (range 16) 613 | -10/Materials | Identified exit to Materials 875 | -10/Materials | Discovered exit to Materials (range 12) 960 | -10/Materials | Core integrity fell below 50% 984 | -10/Materials | Discovered new exit (range 5) 987 | -10/Materials | Identified exit to Mines 1017 | -10/Materials | Entered Mines 1119 | -10/Mines | Assembled infested the area 1145 | -10/Mines | Learned location of Mines (-9) 1161 | -10/Mines | Met 8R-AWN 1240 | -10/Mines | Discovered new exit (range 5) 1245 | -10/Mines | Identified exit to Exiles 1247 | -10/Mines | Entered Exiles 1289 | -10/Exiles | Welcomed by 8R-AWN 1317 | -10/Exiles | Met EX-HEX 1363 | -10/Exiles | Met EX-BIN 1382 | -10/Exiles | Aligned with FarCom system 1384 | -10/Exiles | Given EX-Vault access code 1425 | -10/Exiles | Opened EX-Vault 1436 | -10/Exiles | Found Trap Reconfigurator 1467 | -10/Exiles | Warned to stay clear of 0b10 Research branches 1549 | -10/Exiles | Met EX-DEC 1662 | -10/Exiles | Discovered new exit (range 10) 1675 | -10/Exiles | Identified exit to Mines 1677 | -10/Exiles | Left Exiles lab with Trap Reconfigurator 1677 | -10/Exiles | Entered Mines 1791 | -9/Mines | Excavation squad dispatched 1791 | -9/Mines | A large section of the Mines collapsed 2041 | -9/Mines | Excavation squad dispatched 2067 | -9/Mines | Core integrity fell below 20% 2115 | -9/Mines | Destroyed by G-34 Mercenary with Small Laser Last Messages --------------- 01928_ System corrupted: Substantial component data lost. 02002_ System corrupted: Component data lost. 02040_ K-01 Serf collects debris. 02041_ ALERT: Derelict activity in mines confirmed. Dispatching additional escorted excavation squad. 02043_ K-01 Serf collects debris. 02066_ S-10 Pest destroyed. 02069_ Switching to secondary target: S-10 Pest. 02069_ S-10 Pest destroyed. 02081_ Lgt. Treads destroyed. 02083_ K-01 Serf destroyed. 02086_ K-01 Serf collects debris. 02094_ G-34 Mercenary destroyed. 02103_ Lgt. Treads destroyed. 02103_ G-34 Mercenary destroyed. 02103_ Switching to secondary target: G-34 Mercenary. 02111_ Lgt. Ion Engine destroyed. Map ----- +----------------------------------------------------+ | ?????????????????????????????????????????????? | | ?????????????????????????????????????????????? | | ?????????###?????????????????????????????????? | | #??????# #?????????????????????????????????? | | ####### #?????????????????????????????????? | | ##" ## #?????????????????????????????????? | | # "" # ##??????####???????????????????????? | | #### ### ##??????## ##??????????????????????? | | #?##" ####?????## ##?????????????????????? | | #???## ###?????# ###############???????? | | ?????### ##?????# #???????? | | ??????##"#??????# ############### #???????? | | ??????# ##??????## #?????????????# #???????? | | ??????# #????????## #???????????### #####???? | | ??????# #???####### #???????????# #???? | | ??????# #???# ###?????????# #???? | | ??????# #???# r ##????????# #???? | | ??????# ##### ##### #????????# #???? | | ??????# #?## ##???????# #???? | | ??????####### #?# ##??????#########???? | | ????????????# #?# ##?????????????????? | | ????????????# #?# ##????????????????? | | ????????????# #??# ##???????????????? | | ????????????# #??# ###?????????????? | | ?????????#### #??# !gg ##????????????? | | ?????????# #??# @%! #????????????? | | ?????????# ####??# ##### ##???????????? | | ????????## #????## ##???# #???????????? | | ????????# ####### #????# #???????????? | | ????????# ## ##???? #???????????? | | ????????## #?????=% ##???????????? | | ?????????###### #????# ##????????????? | | ??????????????### ##????# #?????????????? | | ????????????????####?????# *[=##?????????????? | | ?????????????????????????#[%[##??????????????? | | ????????????????????????? =%#???????????????? | | ????????????????????????? = ???????????????? | | ????????????????????????? ???????????????? | | ????????????????????????? ???????????????? | | ????????????????????????? ???????????????? | | ???????????????????????? ???????????????? | | ???????????????????????? ???????????????? | | ?????????????????????????## ???????????????? | | ?????????????????????????????????????????????? | | ?????????????????????????????????????????????? | | ?????????????????????????????????????????????? | | ?????????????????????????????????????????????? | | ?????????????????????????????????????????????? | | ?????????????????????????????????????????????? | | ?????????????????????????????????????????????? | +----------------------------------------------------+ Best States ------------- Heat Dissipation 25 Energy Generation 10 Energy Capacity 250 Matter Stores 300 Matter Capacity 300 Sight Range 16 Terrain Scan Density 10 Evasion (%) 40 Recoil Reduction 2 Item Schematics ----------------- None Robot Schematics ------------------ None Fabricated ------------ Nothing Repaired ---------- Nothing Alien Tech Used ----------------- None Achievements -------------- None Challenges ------------ None Game ------ Seed NeutronCorruptionAutohacker Manual? 0 Play Time 00:19:04 Cumulative 47.3 hours Start 2025.08.10 @ 16:36:31 End 2025.08.10 @ 18:16:08 Sessions 2 Manual Loads 0 Difficulty Rogue Special Mode None Game No. 91 Rogue 88 Adventurer 3 Explorer 0 Win Type - Total 0 Types 0/0/0/0/0/0/0/0/0/0 Lore% 29 Gallery% 31 Achievement% 31 Wizard Run 0 Options --------- Layout 1 ASCII 0 Keyboard 0 Movement Mouse Keybinds 0 Fullscreen 1 Font 24/Smallcaps Map View 50x35 Zoom Use 0% Tactical HUD 1 Map Filters NONE Filters NONE Steam 1 RUN: 344a8600-e46f-4d16-b0a9-6701c9190f41